[Event "MCR rapid mládeže 2023 U16"]
[Site "Harachov, Czech Republic"]
[Date "2023.09.09"]
[Round "1.27"]
[White "Hlavacikova, Lucia"]
[Black "Nova, Anezka"]
[Result "0-1"]
[TimeControl "20min+5s/move"]
[WhiteElo "1264"]
[BlackElo "1382"]

1. e4 {[%clk 00:20:09]} e6 {[%clk 00:20:04]} {[%emt 00:00:07]} 2. d4 {[%clk
00:20:07]} {[%emt 00:00:06]} d5 {[%clk 00:20:07]} {[%emt 00:00:02]} 3. exd5
{[%clk 00:20:07]} {[%emt 00:00:05]} exd5 {[%clk 00:20:11]} {[%emt 00:00:02]} 4.
Nf3 {[%clk 00:20:07]} {[%emt 00:00:04]} Bg4 {[%clk 00:19:57]} {[%emt 00:00:20]}
5. Nc3 {[%clk 00:20:06]} {[%emt 00:00:06]} Bb4 {[%clk 00:19:27]} {[%emt
00:00:34]} 6. Be2 {[%clk 00:20:06]} {[%emt 00:00:04]} Nf6 {[%clk 00:19:15]}
{[%emt 00:00:17]} 7. O-O {[%clk 00:20:07]} {[%emt 00:00:03]} O-O {[%clk
00:19:10]} {[%emt 00:00:11]} 8. Qd3 {[%clk 00:19:58]} {[%emt 00:00:14]} c6
{[%clk 00:18:02]} {[%emt 00:01:14]} 9. Bf4 {[%clk 00:19:43]} {[%emt 00:00:19]}
Re8 {[%clk 00:17:27]} {[%emt 00:00:40]} 10. Ne5 {[%clk 00:19:40]} {[%emt
00:00:08]} Bxe2 {[%clk 00:15:37]} {[%emt 00:01:55]} 11. Qxe2 {[%clk 00:19:21]}
{[%emt 00:00:23]} Nbd7 {[%clk 00:15:29]} {[%emt 00:00:14]} 12. a3 {[%clk
00:18:59]} {[%emt 00:00:28]} Bd6 {[%clk 00:14:46]} {[%emt 00:00:48]} 13. Rfe1
{[%clk 00:17:33]} {[%emt 00:01:30]} Nxe5 {[%clk 00:14:05]} {[%emt 00:00:46]} 14.
dxe5 {[%clk 00:17:16]} {[%emt 00:00:22]} Nd7 {[%clk 00:13:49]} {[%emt
00:00:21]} 15. Qh5 {[%clk 00:16:54]} {[%emt 00:00:27]} Bc7 {[%clk 00:12:36]}
{[%emt 00:01:18]} 16. e6 {[%clk 00:15:42]} {[%emt 00:01:17]} Rxe6 {[%clk
00:12:02]} {[%emt 00:00:39]} 17. Rxe6 {[%clk 00:14:39]} {[%emt 00:01:08]} fxe6
{[%clk 00:12:05]} {[%emt 00:00:02]} 18. Bg5 {[%clk 00:14:29]} {[%emt 00:00:15]}
Qe8 {[%clk 00:11:04]} {[%emt 00:01:05]} 19. Qg4 {[%clk 00:14:00]} {[%emt
00:00:34]} Qg6 {[%clk 00:10:42]} {[%emt 00:00:27]} 20. Re1 {[%clk 00:13:39]}
{[%emt 00:00:27]} Re8 {[%clk 00:10:44]} {[%emt 00:00:02]} 21. Qh4 {[%clk
00:13:19]} {[%emt 00:00:26]} Qxc2 {[%clk 00:09:54]} {[%emt 00:00:56]} 22. Ne2
{[%clk 00:13:05]} {[%emt 00:00:19]} Qxb2 {[%clk 00:09:16]} {[%emt 00:00:42]} 23.
Qh5 {[%clk 00:12:37]} {[%emt 00:00:33]} Rf8 {[%clk 00:08:42]} {[%emt 00:00:39]}
24. Bc1 {[%clk 00:12:16]} {[%emt 00:00:26]} Qf6 {[%clk 00:08:30]} {[%emt
00:00:14]} 25. Rf1 {[%clk 00:12:15]} {[%emt 00:00:10]} Bb6 {[%clk 00:08:25]}
{[%emt 00:00:09]} 26. Bg5 {[%clk 00:11:39]} {[%emt 00:00:39]} Bxf2+ {[%clk
00:07:53]} {[%emt 00:00:39]} 27. Kh1 {[%clk 00:11:37]} {[%emt 00:00:07]} Qe5
{[%clk 00:07:18]} {[%emt 00:00:39]} 28. Bf4 {[%clk 00:11:19]} {[%emt 00:00:24]}
Qxh5 {[%clk 00:07:11]} {[%emt 00:00:12]} 29. Rxf2 {[%clk 00:11:17]} {[%emt
00:00:08]} e5 {[%clk 00:07:08]} {[%emt 00:00:07]} 30. Ng3 {[%clk 00:11:05]}
{[%emt 00:00:17]} Qd1+ {[%clk 00:06:51]} {[%emt 00:00:22]} 31. Nf1 {[%clk
00:11:06]} {[%emt 00:00:04]} Rxf4 {[%clk 00:06:49]} {[%emt 00:00:07]} 32. Rxf4
{[%clk 00:11:05]} {[%emt 00:00:07]} exf4 {[%clk 00:06:52]} {[%emt 00:00:02]} 33.
Kg1 {[%clk 00:11:08]} {[%emt 00:00:02]} Qd4+ {[%clk 00:06:43]} {[%emt
00:00:12]} 34. Kh1 {[%clk 00:11:11]} {[%emt 00:00:03]} Qf2 {[%clk 00:06:45]}
{[%emt 00:00:03]} 35. Ng3 {[%clk 00:11:00]} {[%emt 00:00:16]} Qe1+ {[%clk
00:06:48]} {[%emt 00:00:03]} 36. Nf1 {[%clk 00:11:02]} {[%emt 00:00:02]} Qxf1#
{[%clk 00:06:51]} {[%emt 00:00:02]} 0-1

[Event "MCR rapid mládeže 2023 U16"]
[Site "Harachov, Czech Republic"]
[Date "2023.09.09"]
[Round "1.28"]
[White "Kusova, Nikola"]
[Black "Tepla, Ema"]
[Result "1-0"]
[TimeControl "20min+5s/move"]
[WhiteElo "1247"]
[BlackElo "1049"]

1. e4 {[%clk 00:20:08]} {[%emt 00:00:02]} e5 {[%clk 00:20:09]} {[%emt
00:00:02]} 2. Nc3 {[%clk 00:20:11]} {[%emt 00:00:01]} Nf6 {[%clk 00:20:10]}
{[%emt 00:00:04]} 3. Bc4 {[%clk 00:20:14]} {[%emt 00:00:02]} Bc5 {[%clk
00:20:11]} {[%emt 00:00:04]} 4. d3 {[%clk 00:20:17]} {[%emt 00:00:02]} d6
{[%clk 00:20:11]} {[%emt 00:00:05]} 5. f4 {[%clk 00:20:17]} {[%emt 00:00:05]}
Be6 {[%clk 00:20:05]} {[%emt 00:00:11]} 6. Bb3 {[%clk 00:19:43]} {[%emt
00:00:40]} Nc6 {[%clk 00:20:03]} {[%emt 00:00:06]} 7. Nf3 {[%clk 00:18:40]}
{[%emt 00:01:08]} O-O {[%clk 00:19:44]} {[%emt 00:00:24]} 8. Na4 {[%clk
00:18:41]} {[%emt 00:00:04]} Bg4 {[%clk 00:18:11]} {[%emt 00:01:38]} 9. Nxc5
{[%clk 00:17:17]} {[%emt 00:01:29]} dxc5 {[%clk 00:18:09]} {[%emt 00:00:07]} 10.
O-O {[%clk 00:16:16]} {[%emt 00:01:05]} Re8 {[%clk 00:16:51]} {[%emt 00:01:24]}
11. h3 {[%clk 00:13:48]} {[%emt 00:02:33]} Bxf3 {[%clk 00:16:44]} {[%emt
00:00:12]} 12. Qxf3 {[%clk 00:13:11]} {[%emt 00:00:40]} Nd4 {[%clk 00:16:21]}
{[%emt 00:00:30]} 13. Qf2 {[%clk 00:12:24]} {[%emt 00:00:38]} b5 {[%clk
00:13:55]} {[%emt 00:02:46]} 14. fxe5 {[%clk 00:08:10]} {[%emt 00:04:19]} Rxe5
{[%clk 00:13:32]} {[%emt 00:00:27]} 15. Bf4 {[%clk 00:05:52]} {[%emt 00:02:21]}
Re7 {[%clk 00:13:30]} {[%emt 00:00:09]} 16. Bg5 {[%clk 00:03:31]} {[%emt
00:02:26]} Qd6 {[%clk 00:12:42]} {[%emt 00:00:53]} 17. Bxf6 {[%clk 00:02:00]}
{[%emt 00:01:36]} Qxf6 {[%clk 00:12:43]} {[%emt 00:00:04]} 18. Qxf6 {[%clk
00:01:58]} {[%emt 00:00:07]} gxf6 {[%clk 00:12:46]} {[%emt 00:00:02]} 19. Rxf6
{[%clk 00:02:00]} {[%emt 00:00:04]} Kh8 {[%clk 00:11:34]} {[%emt 00:01:16]} 20.
Bxf7 {[%clk 00:01:17]} {[%emt 00:00:48]} Rf8 {[%clk 00:11:18]} {[%emt
00:00:20]} 21. Raf1 {[%clk 00:00:24]} {[%emt 00:00:59]} Kg7 {[%clk 00:10:04]}
{[%emt 00:01:19]} 22. c3 {[%clk 00:00:28]} {[%emt 00:00:02]} Ne2+ {[%clk
00:10:03]} {[%emt 00:00:06]} 23. Kf2 {[%clk 00:00:24]} {[%emt 00:00:04]} Rexf7
{[%clk 00:09:33]} {[%emt 00:00:39]} 24. Rxf7+ {[%clk 00:00:27]} {[%emt
00:00:02]} Rxf7+ {[%clk 00:09:36]} {[%emt 00:00:02]} 25. Kxe2 {[%clk 00:00:31]}
{[%emt 00:00:01]} Rd7 {[%clk 00:09:13]} {[%emt 00:00:28]} 26. Rf3 {[%clk
00:00:29]} {[%emt 00:00:08]} a5 {[%clk 00:09:08]} {[%emt 00:00:10]} 27. Ke3
{[%clk 00:00:31]} {[%emt 00:00:02]} b4 {[%clk 00:08:59]} {[%emt 00:00:15]} 28.
cxb4 {[%clk 00:00:30]} {[%emt 00:00:05]} cxb4 {[%clk 00:09:02]} {[%emt
00:00:02]} 29. Rf5 {[%clk 00:00:29]} {[%emt 00:00:05]} c6 {[%clk 00:08:48]}
{[%emt 00:00:21]} 30. Rxa5 {[%clk 00:00:20]} {[%emt 00:00:14]} Kh6 {[%clk
00:08:09]} {[%emt 00:00:44]} 31. g4 {[%clk 00:00:17]} {[%emt 00:00:08]} Rf7
{[%clk 00:07:56]} {[%emt 00:00:17]} 32. Rc5 {[%clk 00:00:18]} {[%emt 00:00:03]}
Rf6 {[%clk 00:07:46]} {[%emt 00:00:17]} 33. g5+ {[%clk 00:00:20]} {[%emt
00:00:02]} Kg6 {[%clk 00:07:34]} {[%emt 00:00:17]} 34. gxf6 {[%clk 00:00:24]}
{[%emt 00:00:01]} Kxf6 {[%clk 00:07:38]} {[%emt 00:00:01]} 35. Kf4 {[%clk
00:00:28]} {[%emt 00:00:01]} Ke6 {[%clk 00:07:29]} {[%emt 00:00:13]} 36. Re5+
{[%clk 00:00:32]} {[%emt 00:00:01]} Kd6 {[%clk 00:07:28]} {[%emt 00:00:07]} 37.
Kf5 {[%clk 00:00:35]} {[%emt 00:00:01]} c5 {[%clk 00:07:23]} {[%emt 00:00:09]}
38. Rd5+ {[%clk 00:00:39]} {[%emt 00:00:02]} Kc6 {[%clk 00:07:26]} {[%emt
00:00:03]} 39. Ke6 {[%clk 00:00:39]} {[%emt 00:00:04]} Kb5 {[%clk 00:07:29]}
{[%emt 00:00:03]} 40. e5 {[%clk 00:00:41]} {[%emt 00:00:02]} Kc6 {[%clk
00:07:13]} {[%emt 00:00:21]} 41. Rd6+ {[%clk 00:00:44]} {[%emt 00:00:02]} Kb5
{[%clk 00:07:15]} {[%emt 00:00:03]} 42. Kd7 {[%clk 00:00:46]} {[%emt 00:00:02]}
Ka5 {[%clk 00:06:48]} {[%emt 00:00:33]} 43. e6 {[%clk 00:00:49]} {[%emt
00:00:01]} Ka4 {[%clk 00:06:14]} {[%emt 00:00:40]} 44. e7 {[%clk 00:00:51]}
{[%emt 00:00:02]} Kb5 {[%clk 00:06:18]} {[%emt 00:00:02]} 45. e8=Q {[%clk
00:00:53]} {[%emt 00:00:03]} Ka5 {[%clk 00:06:26]} {[%emt 00:00:02]} 46. Qa8+
{[%clk 00:00:56]} {[%emt 00:00:06]} Kb5 {[%clk 00:06:30]} {[%emt 00:00:03]} 47.
Qb7+ {[%clk 00:00:58]} {[%emt 00:00:01]} Ka5 {[%clk 00:06:18]} {[%emt
00:00:04]} 48. Ra6# {[%clk 00:01:01]} {[%emt 00:00:15]} 1-0

[Event "MCR rapid mládeže 2023 U16"]
[Site "Harachov, Czech Republic"]
[Date "2023.09.09"]
[Round "1.29"]
[White "Velim, Vojtech"]
[Black "Macharacek, Jakub"]
[Result "1-0"]
[TimeControl "20min+5s/move"]
[WhiteElo "1799"]
[BlackElo "1166"]

1. d4 {[%clk 00:20:07]} {[%emt 00:00:02]} d5 {[%clk 00:20:08]} {[%emt
00:00:03]} 2. c4 {[%clk 00:20:11]} {[%emt 00:00:01]} e6 {[%clk 00:20:11]}
{[%emt 00:00:02]} 3. Nc3 {[%clk 00:20:14]} {[%emt 00:00:01]} Nf6 {[%clk
00:20:15]} {[%emt 00:00:02]} 4. Bg5 {[%clk 00:20:17]} {[%emt 00:00:02]} Be7
{[%clk 00:20:17]} {[%emt 00:00:03]} 5. e3 {[%clk 00:20:17]} {[%emt 00:00:04]}
O-O {[%clk 00:20:18]} {[%emt 00:00:04]} 6. Nf3 {[%clk 00:20:15]} {[%emt
00:00:06]} c6 {[%clk 00:19:49]} {[%emt 00:00:35]} 7. cxd5 {[%clk 00:20:12]}
{[%emt 00:00:08]} cxd5 {[%clk 00:19:51]} {[%emt 00:00:03]} 8. Bd3 {[%clk
00:20:12]} {[%emt 00:00:05]} Nc6 {[%clk 00:19:22]} {[%emt 00:00:34]} 9. a3
{[%clk 00:19:37]} {[%emt 00:00:40]} h6 {[%clk 00:18:46]} {[%emt 00:00:42]} 10.
Bh4 {[%clk 00:19:23]} {[%emt 00:00:17]} Nd7 {[%clk 00:17:56]} {[%emt 00:00:56]}
11. Bg3 {[%clk 00:18:18]} {[%emt 00:01:09]} Nb6 {[%clk 00:17:12]} {[%emt
00:00:50]} 12. O-O {[%clk 00:17:37]} {[%emt 00:00:45]} a6 {[%clk 00:16:14]}
{[%emt 00:01:04]} 13. Qe2 {[%clk 00:17:05]} {[%emt 00:00:37]} Bd6 {[%clk
00:15:15]} {[%emt 00:01:04]} 14. Rac1 {[%clk 00:16:41]} {[%emt 00:00:29]} Bxg3
{[%clk 00:14:12]} {[%emt 00:01:08]} 15. hxg3 {[%clk 00:16:31]} {[%emt
00:00:15]} Qe7 {[%clk 00:13:41]} {[%emt 00:00:36]} 16. Bb1 {[%clk 00:14:18]}
{[%emt 00:02:16]} e5 {[%clk 00:12:51]} {[%emt 00:00:57]} 17. dxe5 {[%clk
00:14:02]} {[%emt 00:00:20]} Nxe5 {[%clk 00:12:46]} {[%emt 00:00:11]} 18. Nd4
{[%clk 00:13:54]} {[%emt 00:00:12]} Be6 {[%clk 00:11:39]} {[%emt 00:01:13]} 19.
Qc2 {[%clk 00:13:24]} {[%emt 00:00:35]} Ng6 {[%clk 00:11:12]} {[%emt 00:00:32]}
20. f4 {[%clk 00:12:35]} {[%emt 00:00:53]} f5 {[%clk 00:10:06]} {[%emt
00:01:11]} 21. g4 {[%clk 00:12:07]} {[%emt 00:00:33]} Qd7 {[%clk 00:08:59]}
{[%emt 00:01:13]} 22. gxf5 {[%emt 00:01:20]} Bxf5 {[%clk 00:07:41]} {[%emt
00:00:16]} 23. Nxf5 {[%clk 00:12:01]} {[%emt 00:00:03]} 1-0

[Event "MCR rapid mládeže 2023 U16"]
[Site "Harachov, Czech Republic"]
[Date "2023.09.09"]
[Round "1.30"]
[White "Sarman, Damian"]
[Black "Fadrny, Jachym"]
[Result "0-1"]
[TimeControl "20min+5s/move"]
[WhiteElo "1164"]
[BlackElo "1347"]

1. b3 {[%clk 00:20:06]} {[%emt 00:00:03]} e5 {[%clk 00:20:05]} {[%emt
00:00:06]} 2. Bb2 {[%clk 00:20:10]} {[%emt 00:00:02]} Nc6 {[%clk 00:20:04]}
{[%emt 00:00:06]} 3. e3 {[%clk 00:20:11]} {[%emt 00:00:03]} d5 {[%clk
00:20:02]} {[%emt 00:00:07]} 4. Bb5 {[%clk 00:20:11]} {[%emt 00:00:05]} Bd6
{[%clk 00:19:53]} {[%emt 00:00:14]} 5. Nf3 {[%clk 00:20:09]} {[%emt 00:00:06]}
Bg4 {[%clk 00:19:15]} {[%emt 00:00:43]} 6. h3 {[%clk 00:20:05]} {[%emt
00:00:09]} Bxf3 {[%clk 00:19:04]} {[%emt 00:00:16]} 7. Qxf3 {[%clk 00:20:07]}
{[%emt 00:00:03]} Nf6 {[%clk 00:19:04]} {[%emt 00:00:04]} 8. Nc3 {[%clk
00:19:39]} {[%emt 00:00:33]} a6 {[%clk 00:18:53]} {[%emt 00:00:18]} 9. Bxc6+
{[%clk 00:19:35]} {[%emt 00:00:08]} bxc6 {[%clk 00:18:56]} {[%emt 00:00:02]} 10.
O-O {[%clk 00:19:34]} {[%emt 00:00:06]} O-O {[%clk 00:18:55]} {[%emt 00:00:06]}
11. Ne2 {[%clk 00:19:06]} {[%emt 00:00:32]} Ne4 {[%clk 00:18:46]} {[%emt
00:00:15]} 12. Rad1 {[%clk 00:19:00]} {[%emt 00:00:10]} Ng5 {[%clk 00:17:26]}
{[%emt 00:01:25]} 13. Qg4 {[%clk 00:18:56]} {[%emt 00:00:09]} f5 {[%clk
00:16:55]} {[%emt 00:00:37]} 14. Qh4 {[%clk 00:18:15]} {[%emt 00:00:41]} Nf3+
{[%clk 00:16:53]} {[%emt 00:00:12]} 15. gxf3 {[%clk 00:18:16]} {[%emt
00:00:03]} Qxh4 {[%clk 00:16:56]} {[%emt 00:00:03]} 16. Ng3 {[%clk 00:18:14]}
{[%emt 00:00:06]} f4 {[%clk 00:16:13]} {[%emt 00:00:49]} 17. exf4 {[%clk
00:17:55]} {[%emt 00:00:24]} exf4 {[%clk 00:16:15]} {[%emt 00:00:03]} 18. Ne2
{[%clk 00:17:45]} {[%emt 00:00:14]} Rf5 {[%clk 00:16:13]} {[%emt 00:00:07]} 19.
Rfe1 {[%clk 00:17:34]} {[%emt 00:00:16]} Qxh3 {[%clk 00:16:12]} {[%emt
00:00:07]} 20. a3 {[%clk 00:16:16]} {[%emt 00:01:23]} Rg5+ {[%clk 00:16:13]}
{[%emt 00:00:03]} 21. Ng3 {[%clk 00:16:18]} {[%emt 00:00:03]} fxg3 {[%clk
00:16:09]} {[%emt 00:00:10]} 22. Re2 {[%clk 00:15:19]} {[%emt 00:02:17]} Qh2+
{[%clk 00:16:38]} {[%emt 00:00:38]} 23. Kf1 {[%clk 00:15:20]} {[%emt 00:00:04]}
Qh1# {[%clk 00:16:39]} {[%emt 00:00:02]} 0-1

[Event "MCR rapid mládeže 2023 U16"]
[Site "Harachov, Czech Republic"]
[Date "2023.09.09"]
[Round "1.31"]
[White "Gernert , Tomas"]
[Black "Tomes, Jan"]
[Result "1-0"]
[TimeControl "20min+5s/move"]
[WhiteElo "1236"]
[BlackElo "1050"]

1. e4 {[%clk 00:20:07]} {[%emt 00:00:02]} e5 {[%clk 00:20:09]} {[%emt
00:00:01]} 2. Nf3 {[%clk 00:20:11]} {[%emt 00:00:01]} Nc6 {[%clk 00:20:12]}
{[%emt 00:00:02]} 3. d4 {[%clk 00:20:15]} {[%emt 00:00:01]} exd4 {[%clk
00:20:14]} {[%emt 00:00:03]} 4. Bc4 {[%clk 00:20:19]} {[%emt 00:00:01]} Nf6
{[%clk 00:20:13]} {[%emt 00:00:05]} 5. e5 {[%clk 00:20:22]} {[%emt 00:00:03]}
d5 {[%clk 00:18:36]} {[%emt 00:01:42]} 6. Bb5 {[%clk 00:20:23]} {[%emt
00:00:04]} Nd7 {[%clk 00:18:00]} {[%emt 00:00:41]} 7. O-O {[%clk 00:19:40]}
{[%emt 00:00:48]} Be7 {[%clk 00:17:52]} {[%emt 00:00:13]} 8. Bxc6 {[%clk
00:18:25]} {[%emt 00:01:21]} bxc6 {[%clk 00:17:49]} {[%emt 00:00:07]} 9. Nxd4
{[%clk 00:18:26]} {[%emt 00:00:04]} Nxe5 {[%clk 00:17:25]} {[%emt 00:00:29]} 10.
Bf4 {[%clk 00:18:16]} {[%emt 00:00:15]} Ng6 {[%clk 00:14:28]} {[%emt 00:03:02]}
11. Nxc6 {[%clk 00:16:17]} {[%emt 00:02:03]} Qd7 {[%clk 00:14:16]} {[%emt
00:00:16]} 12. Nxe7 {[%clk 00:16:17]} {[%emt 00:00:07]} Nxe7 {[%clk 00:13:10]}
{[%emt 00:01:11]} 13. Re1 {[%clk 00:16:07]} {[%emt 00:00:14]} O-O {[%clk
00:13:00]} {[%emt 00:00:16]} 14. Nc3 {[%clk 00:15:27]} {[%emt 00:00:46]} Bb7
{[%clk 00:12:43]} {[%emt 00:00:22]} 15. Qe2 {[%clk 00:15:13]} {[%emt 00:00:18]}
Ng6 {[%clk 00:11:51]} {[%emt 00:00:57]} 16. Bg3 {[%clk 00:15:04]} {[%emt
00:00:15]} Qc6 {[%clk 00:11:26]} {[%emt 00:00:29]} 17. Qb5 {[%clk 00:14:20]}
{[%emt 00:00:48]} Qxb5 {[%clk 00:10:34]} {[%emt 00:00:58]} 18. Nxb5 {[%clk
00:14:22]} {[%emt 00:00:03]} c6 {[%clk 00:10:17]} {[%emt 00:00:22]} 19. Nd6
{[%clk 00:14:01]} {[%emt 00:00:26]} Bc8 {[%clk 00:08:17]} {[%emt 00:02:05]} 20.
c4 {[%clk 00:13:09]} {[%emt 00:00:57]} dxc4 {[%clk 00:08:03]} {[%emt 00:00:20]}
21. Nxc4 {[%clk 00:13:10]} {[%emt 00:00:04]} Be6 {[%clk 00:06:54]} {[%emt
00:01:13]} 22. Nd6 {[%clk 00:12:58]} {[%emt 00:00:17]} Rab8 {[%clk 00:06:30]}
{[%emt 00:00:30]} 23. b3 {[%clk 00:12:39]} {[%emt 00:00:23]} h5 {[%clk
00:05:18]} {[%emt 00:01:16]} 24. h3 {[%clk 00:12:06]} {[%emt 00:00:37]} Rbd8
{[%clk 00:02:45]} {[%emt 00:02:38]} 25. Rac1 {[%clk 00:11:50]} {[%emt
00:00:22]} Ne7 {[%clk 00:02:13]} {[%emt 00:00:37]} 26. Bh4 {[%clk 00:10:41]}
{[%emt 00:01:15]} Rd7 {[%clk 00:01:35]} {[%emt 00:00:44]} 27. Bxe7 {[%clk
00:10:02]} {[%emt 00:00:42]} Rxe7 {[%clk 00:01:36]} {[%emt 00:00:05]} 28. Rxc6
{[%clk 00:10:04]} {[%emt 00:00:03]} Rd7 {[%clk 00:01:27]} {[%emt 00:00:14]} 29.
Ne4 {[%clk 00:08:44]} {[%emt 00:01:24]} Bd5 {[%clk 00:01:15]} {[%emt 00:00:18]}
30. Ra6 {[%clk 00:08:48]} {[%emt 00:00:02]} Bxe4 {[%clk 00:01:18]} {[%emt
00:00:01]} 31. Rxe4 {[%clk 00:08:51]} {[%emt 00:00:02]} Rd1+ {[%clk 00:01:22]}
{[%emt 00:00:01]} 32. Kh2 {[%clk 00:08:55]} {[%emt 00:00:02]} Rd7 {[%clk
00:01:24]} {[%emt 00:00:03]} 33. Rea4 {[%clk 00:08:31]} {[%emt 00:00:29]} Ra8
{[%clk 00:01:26]} {[%emt 00:00:02]} 34. Kg3 {[%clk 00:08:27]} {[%emt 00:00:09]}
g6 {[%clk 00:01:29]} {[%emt 00:00:02]} 35. b4 {[%clk 00:08:00]} {[%emt
00:00:32]} Rd3+ {[%clk 00:01:15]} {[%emt 00:00:18]} 36. f3 {[%clk 00:07:53]}
{[%emt 00:00:13]} Rd7 {[%clk 00:01:14]} {[%emt 00:00:06]} 37. b5 {[%clk
00:07:56]} {[%emt 00:00:02]} Rb7 {[%clk 00:01:15]} {[%emt 00:00:03]} 38. b6
{[%clk 00:07:54]} {[%emt 00:00:08]} Kg7 {[%clk 00:00:44]} {[%emt 00:00:35]} 39.
Rxa7 {[%clk 00:07:53]} {[%emt 00:00:07]} Rab8 {[%clk 00:00:25]} {[%emt
00:00:25]} 40. Rxb7 {[%clk 00:07:46]} {[%emt 00:00:12]} Rxb7 {[%clk 00:00:28]}
{[%emt 00:00:01]} 41. Rb4 {[%clk 00:07:50]} {[%emt 00:00:01]} Kh6 {[%clk
00:00:31]} {[%emt 00:00:02]} 42. h4 {[%clk 00:07:52]} {[%emt 00:00:03]} f6
{[%clk 00:00:34]} {[%emt 00:00:02]} 43. f4 {[%clk 00:07:56]} f5 {[%clk
00:00:37]} {[%emt 00:00:02]} 44. a4 {[%clk 00:07:58]} {[%emt 00:00:03]} Kg7
{[%clk 00:00:39]} {[%emt 00:00:02]} 45. a5 {[%clk 00:08:02]} {[%emt 00:00:02]}
Kf7 {[%clk 00:00:43]} 46. a6 {[%clk 00:08:06]} {[%emt 00:00:01]} Re7 {[%clk
00:00:43]} {[%emt 00:00:05]} 47. b7 {[%clk 00:08:05]} {[%emt 00:00:06]} Re3+
{[%clk 00:00:47]} {[%emt 00:00:01]} 48. Kf2 {[%clk 00:08:09]} {[%emt 00:00:01]}
Ra3 {[%clk 00:00:30]} {[%emt 00:00:22]} 49. b8=Q {[%clk 00:08:07]} {[%emt
00:00:07]} Ra2+ {[%clk 00:00:33]} {[%emt 00:00:02]} 50. Rb2 {[%clk 00:08:08]}
{[%emt 00:00:04]} Rxa6 {[%clk 00:00:35]} {[%emt 00:00:02]} 51. Qb7+ {[%clk
00:08:12]} {[%emt 00:00:02]} Kf6 {[%clk 00:00:37]} {[%emt 00:00:03]} 52. Qxa6+
{[%clk 00:08:14]} {[%emt 00:00:03]} Kg7 {[%clk 00:00:41]} {[%emt 00:00:01]} 53.
Rb7+ {[%clk 00:08:18]} {[%emt 00:00:01]} Kh6 {[%clk 00:00:45]} {[%emt
00:00:02]} 54. Rb8 {[%clk 00:07:49]} {[%emt 00:00:32]} Kg7 {[%clk 00:00:38]}
{[%emt 00:00:08]} 55. Qa7+ {[%clk 00:07:51]} {[%emt 00:00:08]} Kh6 {[%clk
00:00:39]} {[%emt 00:00:04]} 56. Rh8# {[%clk 00:07:54]} {[%emt 00:00:02]} 1-0